[Event "IX Famalicao Open 2022"]
[Site "Vila Nova de Famalicao"]
[Date "2022.07.30"]
[Round "9.7"]
[White "GUNDEPUDI, Hari Surya Bharadwaj"]
[Black "Petkov, Vladimir"]
[Result "1-0"]
[ECO "A45"]
[WhiteElo "1924"]
[BlackElo "2470"]
[Annotator "TA"]
[PlyCount "95"]
[EventDate "2022.07.25"]
[EventType "tourn"]
[EventCountry "POR"]
[SourceTitle "playchess.com"]
[Source "ChessBase"]
[SourceQuality "1"]
[TimeControl "5400+30"]

{[%evp 9,95,25,27,26,25,15,11,18,25,23,23,17,22,15,20,23,9,-9,-11,-14,-15,-14,0,-8,-6,-12,-12,-20,-20,-24,-20,-37,-29,-38,-18,-31,-23,-46,-20,-20,40,31,30,32,45,35,61,36,24,0,44,57,38,12,20,28,39,30,58,59,60,61,56,34,50,54,145,0,706,693,699,698,633,679,1168,901,874,889,858,852,29991,447,948,886,1062,1018,5281,1499]} 1. d4 {[%emt 0:01:17]} Nf6 {[%emt 0:00:30]} 2. Bf4 {[%emt 0:00:24]} e6 {[%emt 0:00:39]} 3. e3 {[%emt 0:00:08]} c5 {[%emt 0:00:28]} 4. c3 {[%emt 0:00:07]} cxd4 {[%emt 0:00:36]} 5. exd4 {[%emt 0:00:13]} b6 {[%emt 0:00:42]} 6. Nf3 {[%emt 0:01:17] A45: Trompowsky Attack.} Be7 {[%emt 0:00:23]} 7. Nbd2 {[%emt 0:00:09]} O-O {[%emt 0:00:15]} 8. h3 {[%emt 0:03:42] The position is equal. has lost popularity (8.Bd3).} d6 {[%emt 0:00:25]} 9. Be2 {[%emt 0:01:34] Recently 9.a4 got a lot of attention.} Bb7 {[%emt 0:00:21]} 10. O-O {[%emt 0:00:07]} Nbd7 {[%emt 0:00:21][%cal Bb8d7,Bd7f8,Bf8g6][%mdl 32]} 11. Re1 {[%emt 0:00:09]} Re8 {[%emt 0:00:26]} 12. a4 {[%emt 0:01:00][%cal Ba2a4,Ba4a5][%mdl 32]} a6 {[%emt 0:00:09] [#]} 13. a5 $146 {[%emt 0:00:51]} ({Predecessor:} 13. Bh2 Qc7 14. Bd3 Bf8 15. Qb3 Qc6 16. Bf1 Rac8 17. Bd3 g6 18. Qd1 Bh6 19. Qe2 {1-0 (105) Weetik,V (2423)-Grabinsky,A (2423) Chess.com INT 2021}) 13... Nd5 {[%emt 0:08:19]} 14. Bh2 {[%emt 0:03:27]} b5 {[%emt 0:08:16] Prevents Nc4.} 15. Bd3 {[%emt 0:02:28]} Nf8 {[%emt 0:03:10]} 16. Nf1 {[%emt 0:02:28]} Ng6 {[%emt 0:02:47]} 17. Qd2 {[%emt 0:01:08]} Rc8 {[%emt 0:03:52]} 18. Bb1 {[%emt 0:05:40]} Rc7 {[%emt 0:05:25]} 19. Qd3 {[%emt 0:01:47]} Qa8 {[%emt 0:10:40]} 20. h4 {[%emt 0:01:05]} Nf6 {[%emt 0:03:26] Black wants to play ...Bxf3.} 21. N1d2 {[%emt 0:02:53]} Bf8 {[%emt 0:09:54]} 22. Qf1 {[%emt 0:03:51]} Rd7 {[%emt 0:04:14]} 23. Bg3 {[%emt 0:02:02]} Nh5 {[%emt 0:02:41][%cal Oe6e5]} 24. Ng5 {[%emt 0:01:39]} Bd5 {[%emt 0:19:13]} (24... Be7 $11) 25. c4 {[%emt 0:02:27]} bxc4 {[%emt 0:02:30]} 26. Nxc4 {[%emt 0:02:43]} Bxc4 {[%emt 0:06:19]} 27. Qxc4 {[%emt 0:00:12]} Nf6 {[%emt 0:00:04]} 28. Bd3 {[%emt 0:00:53]} Ra7 {[%emt 0:00:39]} 29. Rec1 {[%emt 0:00:54]} h6 {[%emt 0:02:11]} 30. Bxg6 {[%emt 0:01:59]} hxg5 {[%emt 0:00:35]} 31. Bd3 {[%emt 0:00:48]} gxh4 {[%emt 0:00:33]} 32. Bxh4 {[%emt 0:00:07]} Nd5 {[%emt 0:00:05]} 33. Be4 {[%emt 0:01:28]} Qb8 {[%emt 0:00:04]} 34. Bxd5 {[%emt 0:05:04]} exd5 {[%emt 0:00:06]} 35. Qxd5 {[%emt 0:00:08]} Qxb2 {[%emt 0:00:15]} 36. Rab1 {[%emt 0:00:47]} Qa3 {[%emt 0:00:40]} 37. Re1 {[%emt 0:00:22]} Raa8 {[%emt 0:00:59] [#]} ({Black should play} 37... Rxe1+ $14 38. Rxe1 Rc7) 38. Bg5 {[%emt 0:06:07] White is more active.} ({White should try} 38. Re3 $1 $16 {[%cal Re3a3]} Rxe3 39. Qxa8) 38... Rac8 $2 {[%emt 0:01:32][%mdl 8192]} (38... Rxe1+ $11 39. Rxe1 Rb8) 39. Rxe8 $18 {[%emt 0:00:27]} Rxe8 {[%emt 0:00:05]} 40. Rb7 {[%emt 0:00:15]} Re6 {[%emt 0:01:25]} 41. Qf5 {[%emt 0:01:16] Prevents Qd3.} Re1+ {[%emt 0:01:36]} 42. Kh2 {[%emt 0:00:17]} Qa2 {[%emt 0:01:47]} 43. d5 {[%emt 0:00:20]} f6 {[%emt 0:01:04] [#]} 44. Bxf6 $1 {[%emt 0:00:18][%mdl 512] Intending Qg6 and mate.} Qa4 {[%emt 0:01:28]} (44... Qd2 45. Bxg7) 45. Bg5 {[%emt 0:01:14]} (45. Qg5 $142 Re7 46. Rxe7 Qh4+ 47. Qxh4 Bxe7 48. Bxe7 Kf7 49. Qg5 Ke8 50. Qxg7 Kd7 51. Qf8 Kc7 52. Qa8 Kd7 53. Qd8#) 45... Re5 {[%emt 0:00:07]} (45... Qe8 $142) 46. Qf7+ {[%emt 0:03:53]} Kh7 {[%emt 0:00:02]} 47. f4 {[%emt 0:01:32]} ({Less strong is} 47. Qxf8 Rxg5 48. Qf3 (48. Qxd6 $2 Qe4 $19) 48... Kh6 $14) 47... Re8 {[%emt 0:00:05]} 48. Rb1 {[%emt 0:02:04] Weighted Error Value: White=0.25 (precise) /Black=0.30} (48. f5 $142 Re7 49. Bxe7 Qf4+ 50. Kh3 Qh6+ 51. Bh4 Qe3+ 52. Bg3 Qh6+ 53. Kg4) 1-0

[Event "IX Famalicao Open 2022"]
[Site "Vila Nova de Famalicao"]
[Date "2022.07.30"]
[Round "9.8"]
[White "Quintas Otero, Anton"]
[Black "Dias, Ivo Rodrigues"]
[Result "0-1"]
[ECO "E00"]
[WhiteElo "1730"]
[BlackElo "2133"]
[Annotator "TA"]
[PlyCount "82"]
[EventDate "2022.07.25"]
[EventType "tourn"]
[EventCountry "POR"]
[SourceTitle "playchess.com"]
[Source "ChessBase"]
[SourceQuality "1"]
[TimeControl "5400+30"]

{[%evp 18,82,49,56,55,32,72,76,65,75,68,65,92,71,72,75,59,62,91,56,47,41,98,97,90,58,115,0,0,-52,-34,-98,-25,-29,0,0,0,0,50,18,64,0,0,0,87,73,79,91,60,-456,-436,-747,-744,-722,-701,-1107,-994,-29973,-5924,-29976,-29977,-29988,-29989,-29989,-29986,-29986,-29975]} 1. d4 Nf6 2. c4 e6 3. Nc3 c5 4. d5 exd5 5. cxd5 g6 6. e4 d6 7. h3 a6 8. a4 Bg7 9. Bd3 O-O 10. Nf3 Re8 {[%cal Of6e4] A70: Modern Benoni: 6 e4 g6 7 Nf3.} 11. Qc2 Qc7 12. O-O Nbd7 {White is better.} 13. Bf4 Rb8 14. a5 {[#]} h6 $146 ({Predecessor:} 14... b5 15. axb6 Rxb6 16. Bd2 Nh5 17. Nd1 Qb8 18. g4 Nhf6 19. Re1 c4 20. Bxc4 Nc5 {0-1 (48) Bradney,R (2005)-Gould,I (2012) ICCF email 2014}) 15. Nd2 g5 16. Bh2 {Nc4 is the strong threat.} Ne5 17. Bxe5 Rxe5 18. Nc4 Re8 19. Rab1 Nd7 (19... Bd7 $14) 20. Na4 $16 Ne5 21. Nab6 Qd8 ({Black should play} 21... Nxc4 $14 22. Qxc4 (22. Nxc4 Bd7 $14) 22... Bd7) 22. f4 (22. Nxe5 $16 Bxe5 23. b4) 22... gxf4 $1 $11 {[%cal Of4f3]} 23. Nxc8 (23. Nxe5 $11 Bxe5 24. Kh1) 23... Rxc8 24. Nb6 (24. Rxf4 $15 Nxc4 25. Bxc4) 24... Rc7 ({Much less strong is} 24... Nxd3 25. Qxd3 Rc7 26. Rxf4 $14) (24... c4 $1 $17 25. Bxc4 Nxc4 26. Nxc4 Qxa5 27. Nxa5 Rxc2 28. Rxf4 Bxb2) 25. Rxf4 Qg5 26. Rbf1 Ng6 27. Rf5 Qg3 (27... Qe3+ $11 28. Kh1 Ne5) 28. R5f3 $14 Qg5 (28... Qe5 $11 {was preferrable.}) 29. Rf5 (29. Nc4 $14) 29... Qe3+ 30. Kh1 {[#] Black must now prevent Nc4.} Be5 (30... Ne5 $11 {remains equal.} 31. Bc4 Ng6) 31. Nc4 $16 Qg3 {[%csl Ge5][%cal Rg3h2]} 32. Nxe5 Rxe5 33. Qf2 {[%mdl 8192] This move loses the game for White.} Qxd3 $19 34. Rxf7 {[#]} (34. Rf6 $142 Qxe4 35. Rxf7) 34... Qxf1+ $3 {[%mdl 512]} 35. Qxf1 Rxf7 36. Qd3 Nf4 37. Qg3+ Rg5 38. Qh4 Rxg2 {Black mates.} 39. Qd8+ Kh7 40. Qc8 Rg5 41. h4 Rg8 {Weighted Error Value: White=0.93/Black=0.22 (precise)} 0-1

[Event "IX Famalicao Open 2022"]
[Site "Vila Nova de Famalicao"]
[Date "2022.07.30"]
[Round "9.9"]
[White "Romano, Joao"]
[Black "Ribeiro, Rodrigo"]
[Result "1/2-1/2"]
[ECO "A34"]
[WhiteElo "2029"]
[BlackElo "1903"]
[Annotator "TA"]
[PlyCount "43"]
[EventDate "2022.07.25"]
[EventType "tourn"]
[EventCountry "POR"]
[SourceTitle "playchess.com"]
[Source "ChessBase"]
[SourceQuality "1"]
[TimeControl "5400+30"]

{[%evp 14,43,-9,0,4,-41,-24,-32,-20,-48,-17,-12,-23,-20,-9,-21,-10,-14,-15,-11,-10,-10,0,0,0,0,0,0,0,0,0,0]} 1. c4 {[%emt 0:00:06]} c5 {[%emt 0:00:02]} 2. Nc3 {[%emt 0:00:20]} Nf6 {[%emt 0:00:13]} 3. Nf3 {[%emt 0:00:14]} b6 {[%emt 0:00:05]} 4. e3 {[%emt 0:08:44]} g6 {[%emt 0:05:34]} 5. b3 {[%emt 0:00:16]} Bg7 {[%emt 0:00:37]} 6. Bb2 {[%emt 0:00:14]} O-O {[%emt 0:06:00]} 7. Be2 {[%emt 0:01:26]} Bb7 {[%emt 0:00:14]} 8. O-O {[%emt 0:00:36]} d5 {[%emt 0:04:29] The main line 8...d5 scores better than 8...Nc6. A30: Symmetrical English: Double Fianchetto and Hedgehog.} 9. cxd5 {[%emt 0:11:14]} Nxd5 {[%emt 0:00:08]} 10. Qc2 {[%emt 0:01:45] [#]} Nc6 $146 {[%emt 0:06:12] Black is slightly better.} ({Predecessor:} 10... Nb4 11. Qb1 Nd7 12. a3 Nc6 13. Rd1 e5 14. d4 exd4 15. exd4 Nxd4 16. Nxd4 Bxd4 {0-1 (30) Kharbouch,M (2218)-Efimov,I (2416) Europe Echecs INT 2020}) 11. Rfd1 {[%emt 0:06:13]} Rc8 {[%emt 0:01:29][%cal Oc6d4]} 12. Nxd5 {[%emt 0:03:46]} Qxd5 {[%emt 0:00:22]} 13. Bxg7 {[%emt 0:00:07]} Kxg7 {[%emt 0:00:07] The position is equal.} 14. Qb2+ {[%emt 0:04:12]} Kg8 {[%emt 0:01:08]} 15. Bf1 {[%emt 0:02:00]} Rfd8 {[%emt 0:01:44]} 16. d4 {[%emt 0:09:50]} cxd4 {[%emt 0:06:14]} 17. Nxd4 {[%emt 0:00:44]} Nxd4 {[%emt 0:03:04]} 18. Rxd4 {[%emt 0:00:18]} Qf5 {[%emt 0:04:03]} 19. Rc1 {[%emt 0:07:18]} Rxd4 {[%emt 0:02:45]} 20. Rxc8+ {[%emt 0:00:30]} Bxc8 {[%emt 0:02:38]} 21. Qxd4 {[%emt 0:00:48]} Qd7 {[%emt 0:00:19] Against Qd8+} 22. Qxd7 {[%emt 0:01:47] Weighted Error Value: White=0.08 (flawless) /Black=0.04 (flawless)} 1/2-1/2

[Event "IX Famalicao Open 2022"]
[Site "Vila Nova de Famalicao"]
[Date "2022.07.30"]
[Round "9.10"]
[White "Santos, Jose Miguel Sereno"]
[Black "Umetsubo, Cesar Hidemitsu"]
[Result "0-1"]
[ECO "B50"]
[WhiteElo "1850"]
[BlackElo "2405"]
[Annotator "TA"]
[PlyCount "120"]
[EventDate "2022.07.25"]
[EventType "tourn"]
[EventCountry "POR"]
[SourceTitle "playchess.com"]
[Source "ChessBase"]
[SourceQuality "1"]
[TimeControl "5400+30"]

{[%evp 20,120,0,-3,0,-9,-8,-5,-13,-11,-13,-55,-49,-34,-30,-60,-40,-49,-37,-37,-34,-34,-26,-26,-27,-42,-38,-45,-22,-38,-50,-44,-66,-53,-56,-58,-57,-93,-78,-93,-72,-93,-74,-102,-95,-95,-80,-93,-69,-112,-105,-176,-176,-174,-179,-185,-176,-210,-193,-210,-225,-272,-220,-265,-245,-260,-163,-164,-164,-155,-148,-154,-154,-149,-141,-209,-195,-397,-392,-391,-387,-372,-366,-330,-299,-477,-512,-803,-799,-645,-782,-660,-616,-1770,-1687,-5752,-5342,-4169,-3966,-29964,-6083,-5110,-1724]} 1. e4 {[%emt 0:00:03]} c5 {[%emt 0:00:08]} 2. Nf3 {[%emt 0:00:06]} d6 {[%emt 0:00:05]} 3. Nc3 {[%emt 0:00:07]} Nf6 {[%emt 0:01:19]} 4. Bc4 {[%emt 0:00:07]} Nc6 {[%emt 0:02:33]} 5. a4 {[%emt 0:01:49]} e6 {[%emt 0:00:30]} 6. d4 {[%emt 0:04:59]} cxd4 {[%emt 0:00:10]} 7. Nxd4 {[%emt 0:00:06]} Be7 {[%emt 0:04:22]} 8. O-O {[%emt 0:02:27]} O-O {[%emt 0:00:10]} 9. Be3 {[%emt 0:00:46]} a6 {[%emt 0:05:10]} 10. Be2 {[%emt 0:09:07]} Qc7 {[%emt 0:02:13]} 11. f4 {[%emt 0:02:25]} Nxd4 {[%emt 0:01:49] B50: Sicilian: 2...d6, Miscellaneous.} 12. Bxd4 {[%emt 0:00:32]} e5 {[%emt 0:00:09]} 13. Be3 {[%emt 0:02:00]} exf4 {[%emt 0:03:38] The position is equal.} 14. Rxf4 {[%emt 0:00:31]} Be6 {[%emt 0:00:10]} 15. Qd4 {[%emt 0:03:42] [#]} Nd7 $146 {[%emt 0:01:27]} ({Predecessor:} 15... Rac8 16. Raf1 Nd7 17. Nd5 Bxd5 18. exd5 Bg5 19. Rg4 Bxe3+ 20. Qxe3 Ne5 21. Rb4 Rce8 {½-½ (42) Beltrami,N-Wagman,S (2139) Arvier 2004}) 16. Rd1 {[%emt 0:09:10]} Bf6 {[%emt 0:06:26]} 17. Qd2 {[%emt 0:04:54]} Be5 {[%emt 0:01:03]} 18. Rff1 {[%emt 0:00:50]} Rac8 {[%emt 0:07:54][%cal Re5c3]} 19. Bd4 {[%emt 0:00:32]} Rfd8 {[%emt 0:01:21]} 20. Qe3 {[%emt 0:02:51]} f6 {[%emt 0:02:29]} 21. Rd2 {[%emt 0:01:37]} Qa5 22. Rb1 {[%emt 0:30:34]} Qb4 {[%emt 0:05:58]} 23. h3 {[%emt 0:01:58]} Nf8 {[%emt 0:06:07]} 24. Bg4 {[%emt 0:05:09]} Bxg4 {[%emt 0:07:30]} 25. hxg4 {[%emt 0:00:11]} Ne6 {[%emt 0:00:08]} 26. Bxe5 {[%emt 0:00:11]} dxe5 {[%emt 0:00:06]} ({Of course not} 26... fxe5 27. Nd5 Qc5 28. Qxc5 Rxc5 29. b3 $11) 27. Nd5 {[%emt 0:00:52]} Qc5 {[%emt 0:00:45]} 28. Re1 {[%emt 0:00:17]} Kf7 {[%emt 0:01:17]} 29. b3 {[%emt 0:00:50]} b5 {[%emt 0:03:11]} 30. axb5 {[%emt 0:00:45]} axb5 {[%emt 0:00:01]} 31. Kf1 {[%emt 0:01:44]} Qxe3 {[%emt 0:00:42]} 32. Rxe3 {[%emt 0:00:07]} Nd4 {[%emt 0:01:22]} 33. c3 {[%emt 0:02:13]} Ne6 {[%emt 0:00:56]} 34. Ke2 {[%emt 0:02:09]} Ra8 {[%emt 0:00:30]} 35. c4 {[%emt 0:03:03] [#]} (35. Rb2 $17 {was the only defense.}) 35... bxc4 $1 $19 {[%emt 0:02:04]} 36. bxc4 {[%emt 0:00:01]} Rdb8 {[%emt 0:01:08] Inhibits Rb2.} 37. Rc3 {[%emt 0:02:05] [#]} Nc5 $1 {[%emt 0:00:11]} 38. Ke3 {[%emt 0:00:32]} Ra1 {[%emt 0:00:35]} 39. Re2 {[%emt 0:00:22]} Rbb1 {[%emt 0:01:06]} 40. Rcc2 {[%emt 0:02:31]} Ra3+ {[%emt 0:03:48]} 41. Rc3 {[%emt 0:00:56]} Rxc3+ {[%emt 0:01:45]} 42. Nxc3 {[%emt 0:00:04][%mdl 4096] Endgame KRN-KRN} Rb4 {[%emt 0:00:06]} 43. Nb5 {[%emt 0:00:05]} Rb3+ {[%emt 0:01:35]} 44. Kf2 {[%emt 0:01:43]} Kg6 {[%emt 0:00:25]} 45. Nd6 {[%emt 0:00:30]} Kg5 {[%emt 0:01:40]} 46. Re3 {[%emt 0:00:08]} Rb6 {[%emt 0:06:36]} ({Not} 46... Kxg4 47. Rxb3 Nxb3 48. Nb7 $17) 47. Nb5 {[%emt 0:04:05]} (47. Ne8 $17) 47... Kxg4 {[%emt 0:04:52]} 48. Nc3 $2 {[%emt 0:00:14]} (48. Rg3+ Kf4 49. Rxg7) 48... Rb2+ {[%emt 0:01:03]} 49. Kg1 {[%emt 0:01:02]} h5 {[%emt 0:02:41]} 50. Kh2 {[%emt 0:00:29]} Kg5 {[%emt 0:01:05]} 51. Nd5 {[%emt 0:00:45]} Rb3 {[%emt 0:01:06] And now ...Rxe3 would win.} 52. Rxb3 {[%emt 0:01:13]} (52. Rf3 {was necessary.}) 52... Nxb3 {[%emt 0:00:01] KN-KN} 53. g3 {[%emt 0:00:02]} (53. Nc7 $142 Nc5 54. Kh3) 53... Nc5 {[%emt 0:01:04]} 54. Nc3 {[%emt 0:00:08]} Kg4 {[%emt 0:00:48] Strongly threatening ...Kf3.} 55. Kg2 {[%emt 0:00:12]} g6 {[%emt 0:02:24][%cal Bg7g6,Bg6g5,Bg5g4][%mdl 32]} 56. Kf2 {[%emt 0:01:18]} Kh3 {[%emt 0:00:30]} 57. Kf3 {[%emt 0:00:12]} g5 {[%emt 0:00:16]} 58. Kf2 {[%emt 0:01:12]} g4 {[%emt 0:00:16]} 59. Ne2 {[%emt 0:00:34]} Nxe4+ {[%emt 0:00:20]} 60. Ke3 {[%emt 0:00:04]} f5 {[%emt 0:00:39] Weighted Error Value: White=0.74/Black=0.07 (flawless)} (60... Nxg3 $142 61. Nc1 Nf5+ 62. Ke4 Nd4) 0-1

[Event "IX Famalicao Open 2022"]
[Site "Vila Nova de Famalicao"]
[Date "2022.07.30"]
[Round "9.11"]
[White "Campora, Daniel H."]
[Black "Perez Estevez, Sergio"]
[Result "1-0"]
[ECO "C00"]
[WhiteElo "2397"]
[BlackElo "1765"]
[Annotator "TA"]
[PlyCount "45"]
[EventDate "2022.07.25"]
[EventType "tourn"]
[EventCountry "POR"]
[SourceTitle "playchess.com"]
[Source "ChessBase"]
[SourceQuality "1"]
[TimeControl "5400+30"]

{[%evp 11,45,-33,-16,-36,15,-41,-27,-37,-29,-40,-23,-21,17,-14,39,37,85,73,75,66,211,204,262,263,252,252,316,295,306,311,322,329,410,420,402,420]} 1. e4 e6 2. d3 d5 3. Nd2 Nf6 4. g3 c5 5. Bg2 Nc6 6. f4 Be7 7. c3 {[#] C00: French: Unusual White 2nd moves.} h5 $146 (7... e5 $15) ({Predecessor:} 7... O-O 8. e5 Nd7 9. Ngf3 b5 10. O-O a5 11. Re1 Ba6 12. Nf1 Qb6 13. Be3 Rad8 14. d4 b4 {0-1 (27) Weatherlake,J (1922)-Shepley,J (1929) England 2019}) 8. h3 (8. Ngf3 $11) 8... Qc7 9. Ne2 {Black has an edge.} b6 10. O-O Bb7 11. e5 Nd7 12. a3 h4 (12... g5 $11) 13. g4 $14 g5 (13... O-O-O $14 {is superior.}) 14. Nf3 gxf4 15. Bxf4 d4 {This move loses the game for Black.} (15... O-O-O $14) 16. cxd4 $18 {[%cal Od4d5] [#] Hoping for d5!} cxd4 17. Rc1 (17. Nfxd4 $2 Nxd4 18. Bxb7 (18. Nxd4 $2 Bc5 $19) 18... Nxe2+ 19. Qxe2 Qxb7 $19) 17... Qb8 18. b4 {[%cal Bb2b4,Bb4b5][%mdl 32]} (18. Nfxd4 Nxd4 19. Nxd4 Bc5 $14) 18... a5 19. b5 (19. Nfxd4 $6 Na7 20. Bxb7 Qxb7 $18) (19. Nexd4 $6 Nxd4 20. Nxd4 Bxg2 21. Kxg2 Qb7+ 22. Nc6 Nb8 $18) 19... Na7 20. a4 ({Less strong is} 20. Nfxd4 Bxg2 21. Kxg2 Bxa3 $11) (20. Nexd4 Bxa3 21. Rc2 Bc5 $16) 20... Bc5 21. Kh1 ({Much less strong is} 21. Nfxd4 Nf8 22. Kh2 Bxg2 $18) 21... Nc8 22. Nexd4 Ne7 {Inhibits Nc6.} 23. Nc6 {Weighted Error Value: White=0.12 (very precise) /Black=0.38} 1-0